[Event "Hasselbacken Open 2019"]
[Site "Stockholm"]
[Date "2019.11.01"]
[Round "1.6"]
[White "Dingertz, Erik"]
[Black "Pantzar, Milton"]
[Result "0-1"]
[ECO "A13"]
[WhiteElo "1908"]
[BlackElo "2376"]
[Annotator "NA RC"]
[PlyCount "52"]
[EventDate "2019.11.01"]
[EventCountry "SWE"]
[SourceTitle "playchess.com"]
[Source "ChessBase"]
[SourceQuality "1"]
[TimeControl "900+5"]

1. Nf3 {[%emt 0:00:00]} d5 {[%emt 0:00:00]} 2. c4 {[%emt 0:00:00]} e6 {[%emt 0:00:13]} 3. g3 {[%emt 0:00:03]} c6 {[%emt 0:00:07]} 4. Bg2 {[%emt 0:00:02]} b5 {[%emt 0:00:16]} 5. cxb5 {[%emt 0:00:48]} cxb5 {[%emt 0:00:02]} 6. Nc3 {[%emt 0:00:05]} b4 {[%emt 0:00:18]} 7. Nb5 {[%emt 0:00:07]} a6 {[%emt 0:00:46]} 8. Nbd4 {[%emt 0:00:07]} Nf6 {[%emt 0:00:11]} 9. O-O {[%emt 0:00:09]} Bd6 {[%emt 0:00:37]} 10. Qc2 {[%emt 0:01:53]} O-O {[%emt 0:00:12]} 11. a3 {[%emt 0:00:31]} e5 {[%emt 0:01:56]} 12. Nb3 {[%emt 0:00:58]} bxa3 {[%emt 0:00:29]} 13. bxa3 {[%emt 0:00:03]} Bd7 {[%emt 0:00:31]} 14. Bb2 {[%emt 0:00:09]} Qe7 {[%emt 0:00:11]} 15. d4 {[%emt 0:01:02]} e4 {[%emt 0:01:07]} 16. Ne5 {[%emt 0:00:02]} Rc8 {[%emt 0:00:05]} 17. Qd2 {[%emt 0:01:13]} Nc6 {[%emt 0:00:03]} 18. Nxd7 {[%emt 0:00:22]} Nxd7 {[%emt 0:00:10]} 19. Rfc1 {[%emt 0:01:03]} Nb6 {[%emt 0:00:24]} 20. Nc5 {[%emt 0:00:32]} f5 {[%emt 0:01:09]} 21. e3 {[%emt 0:01:30]} Nc4 {[%emt 0:00:08]} 22. Qc3 {[%emt 0:00:39]} Rab8 {[%emt 0:01:40]} 23. Rab1 {[%emt 0:00:06]} N6a5 {[%emt 0:00:04]} 24. Nxa6 {[%emt 0:00:38]} Rb3 {[%emt 0:00:52]} 25. Qe1 {[%emt 0:00:14]} Qb7 {[%emt 0:00:16]} 26. Rxc4 {[%emt 0:00:26]} Nxc4 {[%emt 0:00:11]} 0-1

[Event "Hasselbacken Open 2019"]
[Site "Stockholm"]
[Date "2019.11.01"]
[Round "2.5"]
[White "Pettersson, Alexander"]
[Black "Roshka, Yevgeniy"]
[Result "0-1"]
[ECO "A42"]
[WhiteElo "2072"]
[BlackElo "2369"]
[Annotator "RC"]
[PlyCount "36"]
[EventDate "2019.11.01"]
[EventCountry "SWE"]
[SourceTitle "playchess.com"]
[Source "ChessBase"]
[SourceQuality "1"]
[TimeControl "900+5"]

1. d4 {[%emt 0:00:00]} g6 {[%emt 0:00:00]} 2. c4 {[%emt 0:00:04]} Bg7 {[%emt 0:00:00]} 3. Nc3 {[%emt 0:00:02]} d6 {[%emt 0:00:00]} 4. e4 {[%emt 0:00:06]} e5 {[%emt 0:00:00]} 5. d5 {[%emt 0:00:13]} a5 {[%emt 0:00:32]} 6. Bd3 {[%emt 0:00:17]} Na6 {[%emt 0:00:01]} 7. Nge2 {[%emt 0:00:07]} Nc5 {[%emt 0:00:04]} 8. Bc2 {[%emt 0:00:04]} Nh6 {[%emt 0:00:29]} 9. Ng3 {[%emt 0:00:48]} O-O {[%emt 0:00:08]} 10. O-O {[%emt 0:00:11]} f5 {[%emt 0:00:03]} 11. exf5 {[%emt 0:00:23]} Nxf5 {[%emt 0:00:01]} 12. Nxf5 {[%emt 0:00:11]} Bxf5 {[%emt 0:00:14]} 13. Bxf5 {[%emt 0:00:31]} gxf5 {[%emt 0:00:42]} 14. Be3 {[%emt 0:00:39]} b6 {[%emt 0:00:13]} 15. Qd2 {[%emt 0:00:40]} Qh4 {[%emt 0:00:26]} 16. b3 {[%emt 0:01:17]} f4 {[%emt 0:00:47]} 17. Bxc5 {[%emt 0:00:24]} f3 {[%emt 0:00:01]} 18. Be3 {[%emt 0:00:55]} Qg4 {[%emt 0:00:05]} 0-1

[Event "Hasselbacken Open 2019"]
[Site "Stockholm"]
[Date "2019.11.01"]
[Round "2.8"]
[White "Vasli, Aref"]
[Black "Muntean, Victor"]
[Result "0-1"]
[ECO "C88"]
[WhiteElo "2348"]
[BlackElo "2020"]
[Annotator "RC"]
[PlyCount "70"]
[EventDate "2019.11.01"]
[EventCountry "SWE"]
[SourceTitle "playchess.com"]
[Source "ChessBase"]
[SourceQuality "1"]
[TimeControl "900+5"]

1. e4 {[%emt 0:00:00]} e5 {[%emt 0:00:00]} 2. Nf3 {[%emt 0:00:00]} Nc6 {[%emt 0:00:00]} 3. Bb5 {[%emt 0:00:01]} a6 {[%emt 0:00:00]} 4. Ba4 {[%emt 0:00:03]} Nf6 {[%emt 0:00:01]} 5. O-O {[%emt 0:00:02]} Be7 {[%emt 0:00:01]} 6. Re1 {[%emt 0:00:05]} b5 {[%emt 0:00:02]} 7. Bb3 {[%emt 0:00:02]} O-O {[%emt 0:00:03]} 8. a4 {[%emt 0:00:32]} Bb7 {[%emt 0:00:04]} 9. d3 {[%emt 0:00:30]} d5 {[%emt 0:01:31]} 10. Nbd2 {[%emt 0:02:12]} Re8 {[%emt 0:01:03]} 11. axb5 {[%emt 0:01:03]} axb5 {[%emt 0:00:01]} 12. Rxa8 {[%emt 0:00:01]} Bxa8 {[%emt 0:00:05]} 13. exd5 {[%emt 0:00:04]} Nxd5 {[%emt 0:00:05]} 14. Ne4 {[%emt 0:01:40]} h6 {[%emt 0:01:25]} 15. Ng3 {[%emt 0:00:26]} Nd4 {[%emt 0:00:39]} 16. Nxd4 {[%emt 0:00:29]} exd4 {[%emt 0:00:02]} 17. Bd2 {[%emt 0:01:44]} Bg5 {[%emt 0:01:40]} 18. Rxe8+ {[%emt 0:00:42]} Qxe8 {[%emt 0:00:01]} 19. Bxg5 {[%emt 0:00:02]} hxg5 {[%emt 0:00:02]} 20. Ne4 {[%emt 0:00:48]} Nf4 {[%emt 0:00:02]} 21. Nxg5 {[%emt 0:01:25]} Qe7 {[%emt 0:00:14]} 22. h4 {[%emt 0:01:15]} Bxg2 {[%emt 0:03:09]} 23. Qg4 {[%emt 0:00:46]} Bb7 {[%emt 0:00:03]} 24. Kh2 {[%emt 0:00:21]} Qe1 {[%emt 0:01:02]} 25. Bxf7+ {[%emt 0:00:58]} Kf8 {[%emt 0:00:18]} 26. Qg1 {[%emt 0:00:23]} Qe5 {[%emt 0:00:32]} 27. Qg3 {[%emt 0:00:05]} Qe1 {[%emt 0:00:11]} 28. Ne4 {[%emt 0:00:36]} Bxe4 {[%emt 0:00:28]} 29. dxe4 {[%emt 0:00:05]} Qxe4 {[%emt 0:00:02]} 30. Bb3 {[%emt 0:00:16]} Ne2 {[%emt 0:00:44]} 31. Qxc7 {[%emt 0:00:24]} Qxh4+ {[%emt 0:00:01]} 32. Kg2 {[%emt 0:00:02]} Nf4+ {[%emt 0:00:02]} 33. Kf3 {[%emt 0:00:07]} Qh1+ {[%emt 0:00:02]} 34. Kg4 {[%emt 0:00:29]} Qh5+ {[%emt 0:00:24]} 35. Kg3 {[%emt 0:00:01]} Qh3+ {[%emt 0:00:02]} 0-1

[Event "Hasselbacken Open 2019"]
[Site "Stockholm"]
[Date "2019.11.01"]
[Round "2.9"]
[White "Falkevall, Axel"]
[Black "Akesson, Ralf"]
[Result "1/2-1/2"]
[ECO "B11"]
[WhiteElo "2036"]
[BlackElo "2370"]
[Annotator "RC"]
[PlyCount "72"]
[EventDate "2019.11.01"]
[EventCountry "SWE"]
[SourceTitle "playchess.com"]
[Source "ChessBase"]
[SourceQuality "1"]
[TimeControl "900+5"]

1. e4 {[%emt 0:00:00]} c6 {[%emt 0:00:00]} 2. Nc3 {[%emt 0:00:00]} d5 {[%emt 0:00:00]} 3. Nf3 {[%emt 0:00:01]} Bg4 {[%emt 0:00:03]} 4. h3 {[%emt 0:00:01]} Bxf3 {[%emt 0:00:02]} 5. Qxf3 {[%emt 0:00:02]} e6 {[%emt 0:00:02]} 6. Be2 {[%emt 0:00:08]} Nd7 {[%emt 0:00:10]} 7. d4 {[%emt 0:00:03]} dxe4 {[%emt 0:00:12]} 8. Nxe4 Ngf6 {[%emt 0:00:02]} 9. O-O {[%emt 0:00:27]} Nxe4 {[%emt 0:00:05]} 10. Qxe4 {[%emt 0:00:02]} Nf6 {[%emt 0:00:02]} 11. Qd3 {[%emt 0:00:07]} Be7 {[%emt 0:00:19]} 12. Rd1 {[%emt 0:00:47]} O-O {[%emt 0:00:06]} 13. c4 {[%emt 0:00:16]} a5 {[%emt 0:00:31]} 14. Be3 {[%emt 0:00:36]} a4 {[%emt 0:00:16]} 15. Bf3 {[%emt 0:00:27]} Qa5 {[%emt 0:00:13]} 16. Qc2 {[%emt 0:00:49]} Rfd8 {[%emt 0:00:13]} 17. Rd3 {[%emt 0:01:16]} Rac8 {[%emt 0:00:33]} 18. Rad1 {[%emt 0:00:10]} h6 {[%emt 0:00:16]} 19. Qe2 {[%emt 0:00:44]} Qb4 {[%emt 0:00:55]} 20. Qc2 {[%emt 0:00:27]} Ne8 {[%emt 0:00:37]} 21. Bd2 {[%emt 0:00:23]} Qb6 {[%emt 0:00:08]} 22. Qxa4 {[%emt 0:00:24]} Qxb2 {[%emt 0:00:21]} 23. Bc3 {[%emt 0:00:29]} Qb6 {[%emt 0:00:09]} 24. c5 {[%emt 0:00:50]} Qa6 {[%emt 0:00:44]} 25. Qxa6 {[%emt 0:00:35]} bxa6 {[%emt 0:00:02]} 26. Ba5 {[%emt 0:00:17]} Rd7 {[%emt 0:00:02]} 27. Rb3 {[%emt 0:00:11]} Ra7 {[%emt 0:01:26]} 28. Rb6 {[%emt 0:00:31]} Bd8 {[%emt 0:00:07]} 29. Rxc6 {[%emt 0:00:01]} Rxc6 {[%emt 0:00:05]} 30. Bxc6 {[%emt 0:00:02]} Bxa5 {[%emt 0:00:02]} 31. Bxe8 {[%emt 0:00:02]} Rb7 {[%emt 0:00:12]} 32. Ba4 {[%emt 0:00:08]} Rb2 {[%emt 0:00:04]} 33. Bb3 {[%emt 0:00:02]} Kf8 {[%emt 0:00:07]} 34. d5 {[%emt 0:00:42]} exd5 {[%emt 0:00:12]} 35. Rxd5 {[%emt 0:00:04]} Rd2 {[%emt 0:00:32]} 36. Rxd2 {[%emt 0:00:14]} Bxd2 {[%emt 0:00:02]} 1/2-1/2

[Event "Hasselbacken Open 2019"]
[Site "Stockholm"]
[Date "2019.11.01"]
[Round "2.10"]
[White "Sorensen, Hampus"]
[Black "Lyngsjo, Hakan"]
[Result "1-0"]
[ECO "A05"]
[WhiteElo "2330"]
[BlackElo "2038"]
[Annotator "RC"]
[PlyCount "61"]
[EventDate "2019.11.01"]
[EventCountry "SWE"]
[SourceTitle "playchess.com"]
[Source "ChessBase"]
[SourceQuality "1"]
[TimeControl "900+5"]

1. Nf3 {[%emt 0:00:00]} Nf6 {[%emt 0:00:00]} 2. c4 {[%emt 0:00:02]} g6 {[%emt 0:00:07]} 3. g3 {[%emt 0:00:06]} Bg7 {[%emt 0:00:17]} 4. Bg2 {[%emt 0:00:07]} c6 {[%emt 0:00:09]} 5. d4 {[%emt 0:00:18]} d5 {[%emt 0:00:06]} 6. cxd5 {[%emt 0:00:02]} cxd5 {[%emt 0:00:01]} 7. Ne5 {[%emt 0:00:01]} O-O {[%emt 0:01:59]} 8. Nc3 {[%emt 0:00:18]} Bf5 {[%emt 0:00:42]} 9. Qb3 {[%emt 0:00:57]} Qb6 {[%emt 0:00:44]} 10. Qxb6 {[%emt 0:01:15]} axb6 {[%emt 0:00:04]} 11. Nxd5 {[%emt 0:00:04]} Nxd5 {[%emt 0:00:54]} 12. Bxd5 {[%emt 0:00:02]} Ra5 {[%emt 0:00:33]} 13. Bxb7 {[%emt 0:00:15]} Bxe5 {[%emt 0:00:26]} 14. dxe5 {[%emt 0:00:01]} Rxe5 {[%emt 0:00:02]} 15. Be3 {[%emt 0:00:43]} Nd7 {[%emt 0:00:17]} 16. O-O {[%emt 0:00:24]} Nc5 {[%emt 0:00:35]} 17. Bf3 {[%emt 0:00:16]} Be4 {[%emt 0:00:45]} 18. Rfd1 {[%emt 0:00:29]} Bxf3 {[%emt 0:01:04]} 19. exf3 {[%emt 0:00:01]} Na4 {[%emt 0:00:39]} 20. b3 {[%emt 0:00:16]} Nc3 {[%emt 0:00:25]} 21. Rd3 {[%emt 0:00:21]} Rc8 {[%emt 0:00:38]} 22. Bxb6 {[%emt 0:00:26]} Nd5 {[%emt 0:01:29]} 23. f4 {[%emt 0:00:45]} Rf5 {[%emt 0:00:54]} 24. Be3 {[%emt 0:00:48]} Rc2 {[%emt 0:00:18]} 25. g4 {[%emt 0:00:21]} Nxe3 {[%emt 0:00:53]} 26. gxf5 {[%emt 0:00:02]} Nxf5 {[%emt 0:00:01]} 27. a4 {[%emt 0:00:09]} Nd6 {[%emt 0:00:15]} 28. a5 {[%emt 0:00:03]} Nb5 {[%emt 0:00:15]} 29. Rd5 {[%emt 0:00:02]} Nc3 {[%emt 0:00:12]} 30. Rd8+ {[%emt 0:00:05]} Kg7 {[%emt 0:00:01]} 31. a6 {[%emt 0:00:05]} 1-0

[Event "Hasselbacken Open 2019"]
[Site "Stockholm"]
[Date "2019.11.01"]
[Round "3.6"]
[White "Vainerchuk, Barys"]
[Black "Pantzar, Milton"]
[Result "1/2-1/2"]
[ECO "C97"]
[WhiteElo "2136"]
[BlackElo "2376"]
[Annotator "RC"]
[PlyCount "132"]
[EventDate "2019.11.01"]
[EventCountry "SWE"]
[SourceTitle "playchess.com"]
[Source "ChessBase"]
[SourceQuality "1"]
[TimeControl "900+5"]

1. e4 {[%emt 0:00:00]} e5 {[%emt 0:00:00]} 2. Nf3 {[%emt 0:00:00]} Nc6 {[%emt 0:00:00]} 3. Bb5 {[%emt 0:00:03]} a6 {[%emt 0:00:01]} 4. Ba4 {[%emt 0:00:02]} Nf6 {[%emt 0:00:03]} 5. O-O {[%emt 0:00:04]} Be7 {[%emt 0:00:01]} 6. Re1 {[%emt 0:00:02]} b5 {[%emt 0:00:02]} 7. Bb3 {[%emt 0:00:01]} d6 {[%emt 0:00:01]} 8. c3 {[%emt 0:00:07]} O-O {[%emt 0:00:05]} 9. h3 {[%emt 0:00:02]} Na5 {[%emt 0:00:02]} 10. Bc2 {[%emt 0:00:02]} c5 {[%emt 0:00:01]} 11. d4 {[%emt 0:00:06]} Qc7 {[%emt 0:00:02]} 12. d5 {[%emt 0:00:11]} Nc4 {[%emt 0:01:37]} 13. b3 {[%emt 0:00:52]} Nb6 {[%emt 0:00:02]} 14. Be3 {[%emt 0:00:08]} Bd7 {[%emt 0:00:27]} 15. Nbd2 {[%emt 0:00:15]} c4 {[%emt 0:00:06]} 16. bxc4 {[%emt 0:01:56]} Nxc4 {[%emt 0:00:07]} 17. Nxc4 {[%emt 0:03:19]} Qxc4 {[%emt 0:00:06]} 18. Qd3 {[%emt 0:00:59]} Rfc8 {[%emt 0:01:01]} 19. Bd2 {[%emt 0:00:19]} Qc5 {[%emt 0:00:38]} 20. Rac1 {[%emt 0:00:38]} Bd8 {[%emt 0:00:19]} 21. Bb3 {[%emt 0:00:36]} Ba5 {[%emt 0:00:17]} 22. c4 {[%emt 0:00:56]} Bxd2 {[%emt 0:00:14]} 23. Nxd2 {[%emt 0:00:02]} Nh5 {[%emt 0:00:44]} 24. Qe3 {[%emt 0:01:18]} Qxe3 {[%emt 0:00:20]} 25. fxe3 {[%emt 0:00:03]} b4 {[%emt 0:00:13]} 26. Bc2 {[%emt 0:01:16]} Nf6 {[%emt 0:00:28]} 27. Bd3 {[%emt 0:00:01]} Ba4 {[%emt 0:00:23]} 28. Bc2 {[%emt 0:00:45]} Be8 {[%emt 0:00:07]} 29. a3 {[%emt 0:00:15]} bxa3 {[%emt 0:00:20]} 30. Ra1 {[%emt 0:00:08]} Nd7 {[%emt 0:00:04]} 31. Rxa3 {[%emt 0:00:10]} Nc5 {[%emt 0:00:03]} 32. Nb3 {[%emt 0:00:28]} Nxb3 {[%emt 0:01:08]} 33. Bxb3 {[%emt 0:00:02]} a5 {[%emt 0:00:04]} 34. Rea1 {[%emt 0:00:18]} Rc5 {[%emt 0:00:02]} 35. Kf2 {[%emt 0:00:06]} f6 {[%emt 0:00:15]} 36. Kf3 {[%emt 0:00:27]} g5 {[%emt 0:00:17]} 37. Ba4 {[%emt 0:00:31]} Bxa4 {[%emt 0:01:48]} 38. Rxa4 {[%emt 0:00:01]} Kg7 {[%emt 0:00:08]} 39. Rb1 {[%emt 0:00:00]} Ra6 {[%emt 0:00:18]} 40. Rb5 {[%emt 0:00:33]} Rxb5 41. cxb5 {[%emt 0:00:01]} Ra8 {[%emt 0:00:28]} 42. b6 {[%emt 0:00:14]} Rb8 {[%emt 0:00:02]} 43. Rxa5 {[%emt 0:00:02]} Rxb6 {[%emt 0:00:01]} 44. Ra7+ {[%emt 0:00:04]} Kg6 {[%emt 0:00:12]} 45. Rd7 {[%emt 0:00:01]} h5 {[%emt 0:00:03]} 46. Rd8 {[%emt 0:00:11]} Ra6 {[%emt 0:00:27]} 47. Rg8+ {[%emt 0:00:10]} Kf7 {[%emt 0:00:07]} 48. Rh8 {[%emt 0:00:11]} Kg6 {[%emt 0:00:43]} 49. Rd8 {[%emt 0:00:02]} Rb6 {[%emt 0:00:13]} 50. Rg8+ {[%emt 0:00:02]} Kh7 {[%emt 0:00:02]} 51. Rd8 {[%emt 0:00:07]} Kg7 {[%emt 0:00:03]} 52. Rd7+ {[%emt 0:00:12]} Kg6 {[%emt 0:00:01]} 53. Rd8 {[%emt 0:00:01]} Ra6 {[%emt 0:00:24]} 54. Rg8+ {[%emt 0:00:03]} Kf7 {[%emt 0:00:02]} 55. Rh8 {[%emt 0:00:04]} h4 {[%emt 0:01:01]} 56. Rh7+ {[%emt 0:00:06]} Kg6 {[%emt 0:00:04]} 57. Rd7 {[%emt 0:00:02]} Rb6 {[%emt 0:00:40]} 58. Rd8 {[%emt 0:00:01]} Kf7 {[%emt 0:00:04]} 59. Rd7+ {[%emt 0:00:03]} Kg6 {[%emt 0:00:04]} 60. Rd8 {[%emt 0:00:01]} Ra6 {[%emt 0:00:03]} 61. Rg8+ {[%emt 0:00:12]} Kf7 {[%emt 0:00:02]} 62. Rd8 {[%emt 0:00:02]} Kg6 {[%emt 0:00:32]} 63. Rg8+ {[%emt 0:00:04]} Kf7 {[%emt 0:00:06]} 64. Rd8 {[%emt 0:00:02]} Kg6 {[%emt 0:00:22]} 65. Rg8+ {[%emt 0:00:01]} Kf7 {[%emt 0:00:01]} 66. Rd8 {[%emt 0:00:02]} Kg6 {[%emt 0:00:01]} 1/2-1/2

[Event "Hasselbacken Open 2019"]
[Site "Stockholm"]
[Date "2019.11.02"]
[Round "5.6"]
[White "Namini, Armin"]
[Black "Papunidi, Matvey"]
[Result "1-0"]
[ECO "A11"]
[WhiteElo "2249"]
[BlackElo "2083"]
[Annotator "RC"]
[PlyCount "97"]
[EventDate "2019.11.01"]
[EventCountry "SWE"]
[SourceTitle "playchess.com"]
[Source "ChessBase"]
[SourceQuality "1"]
[TimeControl "5400+30"]

1. c4 {[%emt 0:00:00]} c6 {[%emt 0:00:00]} 2. g3 {[%emt 0:00:08]} d5 {[%emt 0:00:00]} 3. Bg2 {[%emt 0:00:04]} dxc4 {[%emt 0:00:00]} 4. Nf3 {[%emt 0:00:06]} Nf6 {[%emt 0:01:55]} 5. O-O {[%emt 0:00:12]} Nbd7 {[%emt 0:04:56]} 6. Qc2 {[%emt 0:00:36]} b5 {[%emt 0:01:30]} 7. Nd4 {[%emt 0:02:47]} Qb6 {[%emt 0:03:58]} 8. Nf3 {[%emt 0:20:05]} e5 {[%emt 0:06:06]} 9. b3 {[%emt 0:00:28]} cxb3 {[%emt 0:01:23]} 10. Qxb3 {[%emt 0:02:46]} Bd6 {[%emt 0:03:07]} 11. Bb2 {[%emt 0:09:01]} O-O {[%emt 0:01:23]} 12. d4 {[%emt 0:01:07]} exd4 {[%emt 0:02:11]} 13. Nxd4 {[%emt 0:00:31]} Bb7 {[%emt 0:05:13]} 14. Nf5 {[%emt 0:01:05]} Be5 {[%emt 0:04:58]} 15. Bxe5 {[%emt 0:04:56]} Nxe5 {[%emt 0:00:04]} 16. Qc3 {[%emt 0:00:08]} Nc4 {[%emt 0:02:44]} 17. Nd2 {[%emt 0:02:16]} Nxd2 {[%emt 0:28:00]} 18. Qxd2 {[%emt 0:00:06]} Rfd8 {[%emt 0:04:07]} 19. Qg5 {[%emt 0:19:43]} Ne8 {[%emt 0:00:11]} 20. Rac1 {[%emt 0:00:25]} f6 {[%emt 0:07:40]} 21. Qg4 {[%emt 0:02:16]} Kh8 {[%emt 0:00:43]} 22. Rc3 {[%emt 0:04:32]} Rac8 {[%emt 0:01:07]} 23. Ne7 {[%emt 0:04:35]} Rc7 {[%emt 0:00:19]} 24. Qe6 {[%emt 0:00:47]} Nd6 {[%emt 0:00:47]} 25. g4 {[%emt 0:00:01]} h6 {[%emt 0:03:27]} 26. Rh3 {[%emt 0:09:56]} Qd4 {[%emt 0:04:12]} 27. Rd3 {[%emt 0:02:24]} Qc5 {[%emt 0:00:08]} 28. Rfd1 {[%emt 0:01:30]} Re8 {[%emt 0:01:09]} 29. Ng6+ {[%emt 0:01:39]} Kh7 {[%emt 0:00:03]} 30. Nf8+ {[%emt 0:00:37]} Rxf8 {[%emt 0:00:40]} 31. Rxd6 {[%emt 0:00:04]} a5 {[%emt 0:06:58]} 32. Qe4+ {[%emt 0:03:37]} Kh8 {[%emt 0:00:28]} 33. Qf4 {[%emt 0:00:58]} Qg5 {[%emt 0:01:15]} 34. Qg3 {[%emt 0:00:36]} Re7 {[%emt 0:01:09]} 35. Bf3 {[%emt 0:02:03]} b4 {[%emt 0:01:12]} 36. Rd7 {[%emt 0:00:20]} Rxd7 {[%emt 0:01:23]} 37. Rxd7 {[%emt 0:00:02]} Bc8 {[%emt 0:01:32]} 38. Rc7 {[%emt 0:00:03]} Rd8 {[%emt 0:01:54]} 39. e3 {[%emt 0:04:23]} c5 {[%emt 0:00:16]} 40. h4 {[%emt 0:00:45]} Qg6 {[%emt 0:00:27]} 41. Rxc5 {[%emt 0:00:51]} Qb1+ {[%emt 0:00:06]} 42. Kg2 {[%emt 0:00:04]} a4 {[%emt 0:00:51]} 43. Qc7 {[%emt 0:00:28]} Qd3 {[%emt 0:00:36]} 44. Qa5 {[%emt 0:01:41]} b3 {[%emt 0:00:21]} 45. axb3 {[%emt 0:00:45]} axb3 {[%emt 0:00:09]} 46. Rd5 {[%emt 0:00:33]} Rxd5 {[%emt 0:00:46]} 47. Bxd5 {[%emt 0:00:01]} Be6 {[%emt 0:01:22]} 48. Qa8+ {[%emt 0:00:08]} Kh7 {[%emt 0:00:03]} 49. Be4+ {[%emt 0:00:06]} 1-0

[Event "Hasselbacken Open 2019"]
[Site "Stockholm"]
[Date "2019.11.02"]
[Round "5.10"]
[White "Muganlinskij, Hussein"]
[Black "Torngren, Gustav"]
[Result "0-1"]
[ECO "A46"]
[WhiteElo "2046"]
[BlackElo "2237"]
[Annotator "NA RC"]
[PlyCount "56"]
[EventDate "2019.11.01"]
[EventCountry "SWE"]
[SourceTitle "playchess.com"]
[Source "ChessBase"]
[SourceQuality "1"]
[TimeControl "5400+30"]

1. d4 {[%emt 0:00:00]} e6 {[%emt 0:03:09]} 2. Nf3 {[%emt 0:00:00]} Nf6 {[%emt 0:00:21]} 3. Bg5 {[%emt 0:00:21]} d5 {[%emt 0:02:40]} 4. Nbd2 {[%emt 0:00:14]} Be7 {[%emt 0:01:13]} 5. e3 {[%emt 0:00:14]} h6 {[%emt 0:01:01]} 6. Bh4 {[%emt 0:00:53]} Nbd7 {[%emt 0:03:03]} 7. Bd3 {[%emt 0:00:22]} b6 {[%emt 0:00:44]} 8. c3 {[%emt 0:05:24]} Bb7 {[%emt 0:01:52]} 9. Qc2 {[%emt 0:00:19]} Rc8 {[%emt 0:04:37]} 10. O-O {[%emt 0:00:44]} O-O {[%emt 0:00:21]} 11. b4 {[%emt 0:00:45]} c5 {[%emt 0:01:46]} 12. bxc5 {[%emt 0:00:26]} bxc5 {[%emt 0:00:15]} 13. Bxf6 {[%emt 0:00:37]} Nxf6 {[%emt 0:04:35]} 14. Rab1 {[%emt 0:03:15]} Bc6 {[%emt 0:08:16]} 15. Ne5 {[%emt 0:04:01]} c4 {[%emt 0:15:36]} 16. Be2 {[%emt 0:02:48]} Be8 {[%emt 0:04:59]} 17. f4 {[%emt 0:10:22]} Qa5 {[%emt 0:00:57]} 18. Rb7 {[%emt 0:03:44]} Ba4 {[%emt 0:02:21]} 19. Qb2 {[%emt 0:00:51]} Bd6 {[%emt 0:04:37]} 20. Rb1 {[%emt 0:12:15]} Rb8 {[%emt 0:02:45]} 21. Ndxc4 {[%emt 0:03:37]} dxc4 {[%emt 0:03:55]} 22. Nxc4 {[%emt 0:00:30]} Rxb7 {[%emt 0:00:23]} 23. Qxb7 {[%emt 0:01:13]} Qxc3 {[%emt 0:05:42]} 24. Qa6 {[%emt 0:10:19]} Bxf4 {[%emt 0:02:05]} 25. exf4 {[%emt 0:06:28]} Qxd4+ {[%emt 0:00:03]} 26. Kh1 {[%emt 0:00:38]} Ne4 {[%emt 0:01:44]} 27. g3 {[%emt 0:07:30]} Nc5 {[%emt 0:00:27]} 28. Qxa7 {[%emt 0:02:14]} Bc6+ {[%emt 0:00:03]} 0-1

[Event "Hasselbacken Open 2019"]
[Site "Stockholm"]
[Date "2019.11.02"]
[Round "6.7"]
[White "Soderstrom, Adrian"]
[Black "Dudin, Gleb"]
[Result "0-1"]
[ECO "B00"]
[WhiteElo "1960"]
[BlackElo "2314"]
[Annotator "RC"]
[PlyCount "82"]
[EventDate "2019.11.01"]
[EventCountry "SWE"]
[SourceTitle "playchess.com"]
[Source "ChessBase"]
[SourceQuality "1"]
[TimeControl "5400+30"]

1. e4 {[%emt 0:02:36]} d6 {[%emt 0:01:05]} 2. d4 {[%emt 0:00:32]} g6 {[%emt 0:00:06]} 3. c4 {[%emt 0:01:33]} Bg7 {[%emt 0:00:08]} 4. Nc3 {[%emt 0:00:06]} e5 {[%emt 0:01:18]} 5. Nf3 {[%emt 0:00:17]} Bg4 {[%emt 0:03:13]} 6. d5 {[%emt 0:02:40]} Nd7 {[%emt 0:02:55]} 7. Be2 {[%emt 0:01:59]} Bxf3 {[%emt 0:01:50]} 8. Bxf3 {[%emt 0:00:21]} h5 {[%emt 0:01:10]} 9. Be2 {[%emt 0:07:46]} a5 {[%emt 0:01:23]} 10. Be3 {[%emt 0:01:07]} Bh6 {[%emt 0:00:15]} 11. Bxh6 {[%emt 0:00:47]} Nxh6 {[%emt 0:01:46]} 12. a3 {[%emt 0:01:33]} O-O {[%emt 0:03:31]} 13. O-O {[%emt 0:02:58]} Nc5 {[%emt 0:17:27]} 14. b4 {[%emt 0:04:03]} axb4 {[%emt 0:01:19]} 15. axb4 {[%emt 0:00:02]} Rxa1 {[%emt 0:00:08]} 16. Qxa1 {[%emt 0:00:01]} Nb3 {[%emt 0:00:11]} 17. Qa7 {[%emt 0:00:13]} b6 {[%emt 0:02:41]} 18. Nb5 {[%emt 0:05:41]} Nd2 {[%emt 0:02:42]} 19. Ra1 {[%emt 0:00:32]} Nxe4 {[%emt 0:09:41]} 20. Qxc7 {[%emt 0:00:44]} Qh4 {[%emt 0:28:51]} 21. Qxb6 {[%emt 0:01:39]} Nf5 {[%emt 0:02:23]} 22. Bd3 {[%emt 0:06:09]} Nd4 {[%emt 0:09:37]} 23. Bxe4 {[%emt 0:09:05]} Qxe4 {[%emt 0:00:19]} 24. Nxd4 {[%emt 0:18:37]} exd4 {[%emt 0:00:10]} 25. Qxd6 {[%emt 0:00:08]} Re8 {[%emt 0:00:34]} 26. h3 {[%emt 0:00:20]} d3 {[%emt 0:02:15]} 27. Qf6 {[%emt 0:09:59]} d2 {[%emt 0:02:47]} 28. Kh2 {[%emt 0:00:48]} Qe1 {[%emt 0:00:45]} 29. c5 {[%emt 0:13:06]} d1=Q {[%emt 0:00:43]} 30. Rxd1 {[%emt 0:00:06]} Qxd1 {[%emt 0:00:04]} 31. Qf3 {[%emt 0:03:00]} Qd4 {[%emt 0:00:35]} 32. d6 {[%emt 0:00:31]} Rb8 {[%emt 0:02:03]} 33. Qg3 {[%emt 0:00:50]} h4 {[%emt 0:00:28]} 34. Qg4 {[%emt 0:01:35]} Rxb4 {[%emt 0:01:06]} 35. d7 {[%emt 0:00:34]} Qe5+ {[%emt 0:00:53]} 36. f4 {[%emt 0:00:41]} Qc7 {[%emt 0:00:54]} 37. c6 {[%emt 0:00:09]} Rd4 {[%emt 0:00:34]} 38. Qxh4 {[%emt 0:00:18]} Kg7 {[%emt 0:00:29]} 39. Qg5 {[%emt 0:00:46]} f6 {[%emt 0:00:16]} 40. Qg4 {[%emt 0:02:57]} Qxc6 {[%emt 0:00:15]} 41. f5 {[%emt 0:01:27]} Qd6+ {[%emt 0:00:07]} 0-1